fUST/lending_fUST_20250830
["ID","MTS","AMOUNT","RATE_DAILY","PERIOD"]
[382180432,1756535439123,-153.0,0.00025737,2]
[382180433,1756535439134,-153.0,0.00025737,2]
[382180434,1756535439143,-153.0,0.00025737,2]
[382180435,1756535439152,-153.0,0.00025737,2]
[382180436,1756535439163,-500.0,0.00025773,2]
[382180437,1756535439173,-500.0,0.00025773,2]
[382180438,1756535439182,-500.0,0.00025773,2]
[382180439,1756535439191,-502.16696844,0.00025773,2]
[382180440,1756535439201,-500.0,0.00025773,2]
[382180441,1756535439211,-500.0,0.00025773,2]
[382180442,1756535439220,-151.0,0.00025857,4]
[382180443,1756535439230,-154.06718767,0.00025857,4]
[382180444,1756535439239,-151.0,0.00025857,4]
[382180445,1756535439250,-406.0,0.00025903,2]
[382180446,1756535439262,-201.0,0.00025964,2]
[382180447,1756535439272,-152.13807225,0.00025964,2]
[382180448,1756535439282,-151.0,0.00025964,2]
[382180449,1756535439292,-152.65524359,0.00025964,2]
[382180450,1756535439303,-151.48684361,0.00025964,2]
[382180451,1756535439312,-241.85192776,0.00025964,2]
[382180452,1756535439322,-151.37198271,0.00025964,2]
[382180453,1756535439333,-151.77123579,0.00025964,2]
[382180454,1756535439343,-154.25006985,0.00025964,2]
[382180455,1756535439352,-534.1668621,0.0002599,2]
[382180456,1756535439362,-1863.9446442,0.0002599,2]
[382180457,1756535439371,-160.0,0.00025995,3]
[382180458,1756535439382,-38909.91027796,0.00026,10]
[382180459,1756535439391,-160.0,0.00026,10]
[382180460,1756535439400,-216.25802849,0.00026,10]
[382180461,1756535439410,-160.0,0.00026,10]
[382180462,1756535439419,-404.0,0.00026006,7]
[382180463,1756535439429,-404.0,0.00026061,2]
[382180464,1756535439438,-1511.69018592,0.00026068,2]
[382180465,1756535439447,-391.5425135,0.0002607,4]
[382180466,1756535439458,-201.0,0.00026127,2]
[382180467,1756535439468,-151.0,0.00026131,4]
[382180468,1756535439478,-179.74479563,0.00026131,4]
[382180469,1756535439487,-201.0,0.00026187,2]
[382180470,1756535439497,-500.0,0.00026222,2]
[382180471,1756535439506,-151.0,0.00026238,2]
[382180472,1756535439516,-201.0,0.00026312,2]
[382180473,1756535439525,-355.85596122,0.00026321,2]
[382180474,1756535439535,-500.0,0.00026321,2]
[382180475,1756535439544,-404.0,0.00026326,2]
[382180476,1756535439554,-404.0,0.00026381,2]
[382180477,1756535439564,-151.0,0.00026405,4]
[382180478,1756535439573,-500.0,0.0002645,2]
[382180479,1756535439583,-500.0,0.0002645,2]
[382180480,1756535439592,-160.0,0.00026503,4]
[382180481,1756535439602,-201.0,0.00026511,7]
[382180482,1756535439611,-201.0,0.00026594,2]
[382180483,1756535439621,-183.19033,0.00026676,2]
[382180484,1756535439631,-151.0,0.00026679,4]
[382180485,1756535439641,-201.0,0.00026744,2]
[382180486,1756535439651,-501.31195499,0.0002677,2]
[382180487,1756535439661,-500.58297378,0.00026822,2]
[382180488,1756535439671,-502.82551765,0.00026822,2]
[382180489,1756535439680,-500.0,0.00026822,2]
[382180490,1756535439690,-500.0,0.00026822,2]
[382180491,1756535439699,-501.19331251,0.00026822,2]
[382180492,1756535439709,-221.139459,0.00026922,2]
[382180493,1756535439719,-151.0,0.00026953,4]
[382180494,1756535439728,-537.30438002,0.00026998,2]
[382180495,1756535439738,-1009.25923327,0.00027,2]
[382180497,1756535439747,-163.0,0.00027,7]
[382180498,1756535439756,-160.0,0.0002701,2]
[382180499,1756535439766,-160.0,0.00027012,5]
[382180500,1756535439776,-245.0,0.00027227,4]
[382180501,1756535439785,-1042.9974256,0.0002735,2]
[382180502,1756535439795,-534.1668621,0.00027357,2]
[382180503,1756535439804,-1863.9446442,0.00027357,2]
[382180504,1756535439815,-1313.83234452,0.00027367,2]
[382180505,1756535439824,-1000.0,0.0002737,2]
[382180507,1756535439835,-1000.0,0.0002737,2]
[382180509,1756535439844,-500.0,0.00027373,2]
[382180510,1756535439855,-500.0,0.00027373,2]
[382180511,1756535439865,-500.0,0.00027373,2]
[382180512,1756535439876,-510.68393738,0.00027373,2]
[382180513,1756535439885,-500.0,0.00027373,2]
[382180514,1756535439895,-501.94062629,0.00027373,2]
[382180515,1756535439905,-500.0,0.00027373,2]
[382180517,1756535439914,-502.89245792,0.00027373,2]
[382180518,1756535439923,-534.1668621,0.0002739,2]
[382180519,1756535439933,-1863.9446442,0.0002739,2]
[382180521,1756535439942,-5385.95,0.000274,7]
[382180523,1756535439952,-43223.16,0.000274,7]
[382180525,1756535439962,-151.0,0.000274,7]
[382180526,1756535439971,-151.0,0.000274,7]
[382180528,1756535439981,-151.0,0.000274,7]
[382180530,1756535439990,-151.0,0.000274,7]
[382180532,1756535439999,-151.0,0.000274,7]
[382180533,1756535440008,-1000.0,0.00027492,2]
[382180535,1756535440018,-1000.0,0.00027492,2]
[382180537,1756535440028,-1000.0,0.00027492,2]
[382180539,1756535440037,-1000.0,0.00027492,2]
[382180540,1756535440046,-1000.0,0.00027492,2]
[382180542,1756535440055,-1000.0,0.00027492,2]
[382180544,1756535440065,-1000.0,0.00027492,2]
[382180546,1756535440075,-1000.0,0.00027492,2]
[382180547,1756535440084,-151.0,0.00027492,2]
[382180549,1756535440094,-752.19282963,0.00027492,2]
[382180551,1756535440103,-151.0,0.00027492,2]
[382180553,1756535440113,-151.0,0.00027492,2]
[382180554,1756535440122,-151.0,0.00027492,2]
[382180556,1756535440131,-151.0,0.00027492,2]
[382180558,1756535440140,-151.0,0.00027492,2]
[382180560,1756535440150,-151.0,0.00027492,2]
[382180562,1756535440159,-151.0,0.00027492,2]
[382180563,1756535440169,-151.0,0.00027492,2]
[382180565,1756535440179,-151.0,0.00027492,2]
[382180567,1756535440188,-151.0,0.00027492,2]
[382180569,1756535440198,-151.0,0.00027492,2]
[382180570,1756535440207,-151.0,0.00027492,2]
[382180572,1756535440216,-500.0,0.00027492,2]
[382180574,1756535440226,-151.0,0.00027492,2]
[382180576,1756535440236,-500.0,0.00027492,2]
[382180578,1756535440245,-151.0,0.00027492,2]
[382180579,1756535440259,-2492.71625395,0.00027492,2]
[382180581,1756535440268,-500.0,0.00027492,2]
[382180583,1756535440277,-151.0,0.00027492,2]
[382180585,1756535440286,-500.0,0.00027492,2]
[382180586,1756535440295,-151.0,0.00027492,2]
[382180588,1756535440306,-151.0,0.00027492,2]
[382180590,1756535440315,-500.0,0.00027492,2]
[382180592,1756535440325,-153.21929658,0.00027492,2]
[382180594,1756535440335,-151.0,0.00027492,2]
[382180595,1756535440344,-500.0,0.00027492,2]
[382180597,1756535440354,-151.0,0.00027492,2]
[382180599,1756535440363,-500.0,0.00027492,2]
[382180601,1756535440372,-151.0,0.00027492,2]
[382180602,1756535440380,-151.0,0.00027492,2]
[382180604,1756535440390,-500.0,0.00027492,2]
[382180606,1756535440399,-151.0,0.00027492,2]
[382180608,1756535440408,-500.0,0.00027492,2]
[382180610,1756535440418,-151.0,0.00027492,2]
[382180611,1756535440427,-500.0,0.00027492,2]
[382180612,1756535440436,-151.0,0.00027492,2]
[382180613,1756535440445,-500.0,0.00027492,2]
[382180614,1756535440454,-151.0,0.00027492,2]
[382180615,1756535440464,-500.0,0.00027492,2]
[382180616,1756535440473,-500.0,0.00027492,2]
[382180618,1756535440482,-500.0,0.00027492,2]
[382180619,1756535440492,-160.0,0.0002752,6]
[382180620,1756535440501,-267.8177275,0.00027558,2]
[382180621,1756535440511,-1400.0,0.00027837,7]
[382180622,1756535440520,-1500.0,0.00027918,5]
[382180623,1756535440530,-1536.85746545,0.00027918,5]
[382180624,1756535440539,-500.0,0.00027921,5]
[382180625,1756535440549,-1000.0,0.00027921,5]
[382180626,1756535440558,-1020.34033377,0.00027921,5]
[382180627,1756535440567,-2001.62977707,0.0002798,2]
[382180628,1756535440577,-1225.72999923,0.00028,15]
[382180629,1756535440586,-160.0,0.00028028,7]
[382180630,1756535440596,-500.0,0.00028154,5]
[382180631,1756535440605,-156.21,0.00028383,15]
[382180632,1756535440614,-2000.0,0.00028466,5]
[382180634,1756535440623,-1500.0,0.00028468,5]
[382180636,1756535440633,-156.21,0.00028483,15]
[382180637,1756535440642,-160.0,0.00028536,8]
[382180639,1756535440652,-156.21,0.00028583,15]
[382180640,1756535440661,-1400.0,0.00028659,7]
[382180641,1756535440671,-156.21,0.00028683,15]
[382180642,1756535440680,-407.15470342,0.00028702,5]
[382180643,1756535440689,-163.0,0.00028767,14]
[382180644,1756535440699,-156.21,0.00028783,15]
[382180645,1756535440708,-490.94080888,0.00028783,2]
[382180646,1756535440719,-1963.76323551,0.00028783,2]
[382180647,1756535440728,-4414.04881261,0.00028783,2]
[382180648,1756535440738,-359.91813632,0.00028783,2]
[382180649,1756535440748,-1439.67254527,0.00028783,2]
[382180650,1756535440758,-3236.02396363,0.00028783,2]
[382180651,1756535440767,-156.21,0.00028883,15]
[382180652,1756535440776,-156.21113127,0.00028983,15]
[382180653,1756535440786,-2846.80995231,0.00029,7]
[382180659,1756535443244,-417.15472785,0.000238,7]
[382180660,1756535443256,-221.1394596,0.00024605,2]
[382180661,1756535443266,-417.15472785,0.00026,10]
[382180662,1756535443275,-990.5510847,0.00029,7]
[382180676,1756535446691,-152.258762,0.000274,7]
[382180677,1756535446701,-1871.37896299,0.00029,7]
[382180678,1756535446710,-2202.11960019,0.00029014,5]
[382180679,1756535446720,-163.34797213,0.00029016,5]
[382180680,1756535446730,-160.0,0.00029045,9]
[382180681,1756535446739,-151.0,0.000291,14]
[382180682,1756535446748,-391.5425135,0.00029155,11]
[382180683,1756535446758,-787.92315448,0.00029175,2]
[382180693,1756535528492,-160.844583,0.00023328,2]
[382180694,1756535528525,-300.0,0.00023632,2]
[382180695,1756535528556,-848.0,0.00023632,2]
[382180696,1756535530227,216.69,0.00023623,10]
[382180697,1756535532383,5000.0,0.00023633,2]
[382180698,1756535546545,287.13117658,0.000199,2]
[382180699,1756535546617,287.13117658,0.00022985,2]
[382180700,1756535560588,292.22312157,0.00023632,2]
[382180701,1756535560773,477.57497016,0.00023632,2]
[382180702,1756535561627,446.96968647,0.00023632,2]
[382180703,1756535561663,374.60070264,0.00023632,2]
[382180704,1756535561690,140.53466792,0.00023632,2]
[382180705,1756535561720,225.56632425,0.00023632,2]
[382180706,1756535561749,236.39877765,0.00023632,2]
[382180707,1756535561782,500.0,0.00023632,2]
[382180708,1756535561827,500.0,0.00023632,2]
[382180709,1756535561868,500.0,0.00023632,2]
[382180710,1756535561910,500.0,0.00023632,2]
[382180711,1756535561950,158.88930291,0.00023632,2]
[382180712,1756535561986,500.0,0.00023632,2]
[382180713,1756535562035,500.0,0.00023632,2]
[382180714,1756535562076,500.0,0.00023632,2]
[382180715,1756535562118,500.0,0.00023632,2]
[382180716,1756535562157,500.0,0.00023632,2]
[382180717,1756535562207,500.0,0.00023632,2]
[382180718,1756535562257,500.0,0.00023632,2]
[382180719,1756535562304,500.0,0.00023632,2]
[382180720,1756535562352,500.0,0.00023632,2]
[382180721,1756535562401,500.0,0.00023632,2]
[382180722,1756535562474,500.0,0.00023632,2]
[382180723,1756535562523,500.0,0.00023632,2]
[382180724,1756535562566,500.0,0.00023632,2]
[382180725,1756535562618,500.0,0.00023632,2]
[382180726,1756535562662,238.62092727,0.00023632,2]
[382180727,1756535562694,261.37907273,0.00023632,2]
[382180728,1756535562733,500.0,0.00023632,2]
[382180729,1756535562771,500.0,0.00023632,2]
[382180730,1756535562808,500.0,0.00023632,2]
[382180731,1756535562849,500.0,0.00023632,2]
[382180732,1756535562887,500.0,0.00023632,2]
[382180733,1756535562922,500.0,0.00023632,2]
[382180734,1756535562971,500.0,0.00023632,2]
[382180735,1756535563004,500.0,0.00023632,2]
[382180736,1756535563044,500.0,0.00023632,2]
[382180737,1756535563091,500.0,0.00023632,2]
[382180738,1756535563469,500.0,0.00023632,2]
[382180739,1756535563504,500.0,0.00023632,2]
[382180740,1756535563542,500.0,0.00023632,2]
[382180741,1756535563581,500.0,0.00023632,2]
[382180742,1756535563619,500.0,0.00023632,2]
[382180743,1756535563658,500.0,0.00023632,2]
[382180744,1756535563697,500.0,0.00023632,2]
[382180745,1756535563755,500.0,0.00023632,2]
[382180746,1756535563990,500.0,0.00023632,2]
[382180747,1756535564026,238.63092727,0.00023632,2]
[382180748,1756535564054,261.36907273,0.00023632,2]
[382180749,1756535564087,500.0,0.00023632,2]
[382180750,1756535564121,500.0,0.00023632,2]
[382180751,1756535564156,500.0,0.00023632,2]
[382180752,1756535564189,500.0,0.00023632,2]
[382180753,1756535564259,500.0,0.00023632,2]
[382180754,1756535564293,500.0,0.00023632,2]
[382180755,1756535564330,500.0,0.00023632,2]
[382180756,1756535564364,500.0,0.00023632,2]
[382180757,1756535564403,268.8726104,0.00023632,2]
[382180758,1756535564453,500.0,0.00023632,2]
[382180759,1756535564502,500.0,0.00023632,2]
[382180760,1756535564537,500.0,0.00023632,2]
[382180761,1756535564576,500.0,0.00023632,2]
[382180762,1756535564612,500.0,0.00023632,2]
[382180763,1756535564662,500.0,0.00023632,2]
[382180764,1756535564710,500.0,0.00023632,2]
[382180765,1756535564748,500.0,0.00023632,2]
[382180766,1756535564796,500.0,0.00023632,2]
[382180767,1756535564844,500.0,0.00023632,2]
[382180768,1756535574353,275.91,0.00023623,10]
[382180769,1756535579282,193.85831687,0.00023632,2]
[382180770,1756535579319,306.14168313,0.00023632,2]
[382180771,1756535579365,500.0,0.00023632,2]
[382180772,1756535579416,500.0,0.00023632,2]
[382180773,1756535579460,500.0,0.00023632,2]
[382180774,1756535579494,500.0,0.00023632,2]
[382180775,1756535579527,500.0,0.00023632,2]
[382180776,1756535579562,500.0,0.00023632,2]
[382180777,1756535579602,500.0,0.00023632,2]
[382180778,1756535579647,500.0,0.00023632,2]
[382180779,1756535579707,500.0,0.00023632,2]
[382180780,1756535579748,500.0,0.00023632,2]
[382180781,1756535579788,500.0,0.00023632,2]
[382180782,1756535579827,500.0,0.00023632,2]
[382180783,1756535579859,500.0,0.00023632,2]
[382180784,1756535579898,500.0,0.00023632,2]
[382180785,1756535579948,500.0,0.00023632,2]
[382180786,1756535579982,500.0,0.00023632,2]
[382180787,1756535580020,500.0,0.00023632,2]
[382180788,1756535580068,500.0,0.00023632,2]
[382180789,1756535580112,500.0,0.00023632,2]
[382180790,1756535580152,193.86831687,0.00023632,2]
[382180791,1756535580183,306.13168313,0.00023632,2]
[382180792,1756535580228,500.0,0.00023632,2]
[382180793,1756535580266,500.0,0.00023632,2]
[382180794,1756535580323,500.0,0.00023632,2]
[382180795,1756535580363,500.0,0.00023632,2]
[382180796,1756535580407,500.0,0.00023632,2]
[382180797,1756535580450,500.0,0.00023632,2]
[382180798,1756535580500,500.0,0.00023632,2]
[382180799,1756535580539,530.25035077,0.00023632,2]
[382180800,1756535580577,500.0,0.00023632,2]
[382180801,1756535580629,500.0,0.00023632,2]
[382180802,1756535580698,500.0,0.00023632,2]
[382180803,1756535580767,500.0,0.00023632,2]
[382180804,1756535580808,500.0,0.00023632,2]
[382180805,1756535582652,300.0,0.00023632,2]
[382180806,1756535582712,500.0,0.00023632,2]
[382180807,1756535582747,500.0,0.00023632,2]
[382180808,1756535583576,1030.62531564,0.000234,2]
[382180809,1756535589151,229.93,0.00023623,10]
[382180810,1756535590638,500.0,0.00023632,2]
[382180811,1756535590684,103.07265046,0.00023632,2]
[382180812,1756535590718,396.92734954,0.00023632,2]
[382180813,1756535590761,500.0,0.00023632,2]
[382180814,1756535591071,500.0,0.00023632,2]
[382180815,1756535591112,500.0,0.00023632,2]
[382180816,1756535591154,500.0,0.00023632,2]
[382180817,1756535591191,500.0,0.00023632,2]
[382180818,1756535591253,500.0,0.00023632,2]
[382180819,1756535591299,500.0,0.00023632,2]
[382180820,1756535591543,250.0,0.00023632,2]
[382180821,1756535591586,500.0,0.00023632,2]
[382180822,1756535591624,500.0,0.00023632,2]
[382180823,1756535591667,500.0,0.00023632,2]
[382180824,1756535591724,500.0,0.00023632,2]
[382180825,1756535614924,191.61,0.00023623,10]
[382180826,1756535629694,159.67,0.00023623,10]
[382180827,1756535642492,3000.98555666,0.000236,2]
[382180828,1756535643766,300.0,0.00023632,2]
[382180829,1756535644511,200.8170938,0.00023623,10]
[382180830,1756535644538,597.5729062,0.00023623,10]
[382180831,1756535673215,204.5561851,0.00023632,2]
[382180832,1756535674638,500.0,0.00023632,2]
[382180833,1756535674677,500.0,0.00023632,2]
[382180834,1756535674715,500.0,0.00023632,2]
[382180835,1756535674750,500.0,0.00023632,2]
[382180836,1756535674782,500.0,0.00023632,2]
[382180837,1756535675039,500.0,0.00023632,2]
[382180838,1756535675095,500.0,0.00023632,2]
[382180839,1756535675157,500.0,0.00023632,2]
[382180840,1756535675200,254.91229611,0.00023632,2]
[382180841,1756535675253,500.0,0.00023632,2]
[382180842,1756535675303,500.0,0.00023632,2]
[382180843,1756535675423,500.0,0.00023632,2]
[382180844,1756535702548,300.0,0.00023632,2]
[382180845,1756535702854,300.0,0.00023632,2]
[382180846,1756535702958,300.0,0.00023632,2]
[382180847,1756535703000,300.0,0.00023632,2]
[382180848,1756535703398,1200.0,0.00023632,2]
[382180849,1756535703524,300.0,0.00023632,2]
[382180850,1756535714895,274.94985392,0.000199,2]
[382180851,1756535715008,274.94985392,0.00022985,2]
[382180852,1756535717484,151.0,0.00023632,2]
[382180853,1756535718366,42.06890475,0.00023632,2]
[382180854,1756535718392,108.93109525,0.00023632,2]
[382180855,1756535719560,151.0,0.00023632,2]
[382180856,1756535720855,151.88174151,0.00023632,2]
[382180858,1756535753346,172.875771,0.00013699,2]
[382180859,1756535753575,172.875771,0.00020187,2]
[382180860,1756535764792,300.0,0.00023632,2]
[382180861,1756535787900,712.45104103,0.000236,2]
[382180862,1756535795194,151.0,0.000232,7]
[382180863,1756535823224,300.0,0.00023632,2]
[382180864,1756535836687,747.2656431,0.000236,2]
[382180865,1756535846895,229.81466995,0.00023632,2]
[382180866,1756535883555,300.0,0.00023632,2]
[382180867,1756535901194,238.2898734,0.000199,2]
[382180868,1756535901284,238.2898734,0.00022985,2]
[382180869,1756535912790,2000.65703776,0.000236,2]
[382180870,1756536002576,300.0,0.00023632,2]
[382180871,1756536002728,300.0,0.00023632,2]
[382180872,1756536003089,300.0,0.00023632,2]
[382180873,1756536003399,888.0,0.00023632,2]
[382180874,1756536069984,90636.20629656,0.00031068,120]
[382180875,1756536082028,206.51789028,0.000199,2]
[382180876,1756536082115,206.51789028,0.00022985,2]
[382180877,1756536179618,597.81251448,0.000236,2]
[382180878,1756536182929,1333.77135852,0.000236,2]
[382180879,1756536221516,623.39466091,0.000236,2]
[382180880,1756536264459,357.96434316,0.000199,2]
[382180881,1756536413130,221.139459,0.00022854,2]
[382180882,1756536444740,310.23576408,0.000199,2]
[382180883,1756536454204,889.18090568,0.000236,2]
[382180884,1756536518662,165.991663,0.00022854,2]
[382180885,1756536520069,152.00856054,0.000236,2]
[382180886,1756536524369,478.25001156,0.000236,2]
[382180887,1756536607239,302.66710251,0.00023482,10]
[382180888,1756536624128,268.87099552,0.000199,2]
[382180904,1756536632734,-649.81342302,0.00023633,2]
[382180906,1756536632747,-930.05085711,0.00023633,2]
[382180943,1756536638426,-368420.13571987,0.00023633,2]
[382180945,1756536638436,-478.25001155,0.00023675,2]
[382180947,1756536638446,-48025.73,0.000237,7]
[382180949,1756536638456,-5662.01,0.000237,7]
[382180951,1756536638465,-216.25802849,0.000237,7]
[382180953,1756536638475,-1593.43839552,0.00023732,15]
[382180955,1756536638485,-478.25001155,0.0002375,2]
[382180957,1756536638495,-478.25001155,0.00023825,2]
[382180959,1756536638504,-478.25001155,0.000239,2]
[382180961,1756536638513,-500.0,0.00023973,2]
[382180963,1756536638523,-377.58739239,0.00023973,2]
[382180965,1756536638532,-277.88176164,0.00023973,2]
[382180967,1756536638542,-500.0,0.00023973,2]
[382180969,1756536638551,-500.0,0.00023973,2]
[382180971,1756536638560,-162.10625709,0.00023973,2]
[382180973,1756536638570,-510.68393738,0.00023973,2]
[382180975,1756536638579,-500.0,0.00023973,2]
[382180977,1756536638589,-500.0,0.00023973,2]
[382180979,1756536638599,-500.0,0.00023973,2]
[382180981,1756536638609,-500.0,0.00023973,2]
[382180983,1756536638618,-500.0,0.00023973,2]
[382180985,1756536638628,-504.40326642,0.00023973,2]
[382180987,1756536638637,-502.16696844,0.00023973,2]
[382180989,1756536638647,-500.0,0.00023973,2]
[382180991,1756536638656,-509.07670686,0.00023973,2]
[382180993,1756536638666,-500.0,0.00023973,2]
[382180995,1756536638675,-502.77722272,0.00023973,2]
[382180997,1756536638685,-500.0,0.00023973,2]
[382180999,1756536638695,-500.0,0.00023973,2]
[382181001,1756536638709,-50000.0,0.00023973,2]
[382181003,1756536638718,-500.0,0.00023973,2]
[382181005,1756536638728,-500.0,0.00023973,2]
[382181007,1756536638738,-501.19331251,0.00023973,2]
[382181009,1756536638748,-500.0,0.00023973,2]
[382181011,1756536638758,-500.0,0.00023973,2]
[382181013,1756536638767,-500.0,0.00023973,2]
[382181014,1756536638777,-500.0,0.00023973,2]
[382181016,1756536638787,-506.84425262,0.00023973,2]
[382181018,1756536638796,-500.0,0.00023973,2]
[382181020,1756536638807,-500.0,0.00023973,2]
[382181022,1756536638817,-500.0,0.00023973,2]
[382181024,1756536638828,-500.58297378,0.00023973,2]
[382181026,1756536638839,-547.62822904,0.00023973,2]
[382181028,1756536638850,-502.82551765,0.00023973,2]
[382181030,1756536638860,-200.0,0.00023973,2]
[382181032,1756536638870,-500.0,0.00023973,2]
[382181034,1756536638880,-500.0,0.00023973,2]
[382181036,1756536638889,-500.0,0.00023973,2]
[382181038,1756536638899,-500.0,0.00023973,2]
[382181040,1756536638909,-500.0,0.00023973,2]
[382181042,1756536638918,-501.60924757,0.00023973,2]
[382181044,1756536638928,-503.92401456,0.00023973,2]
[382181046,1756536638937,-501.21865721,0.00023973,2]
[382181048,1756536638947,-87991.25086256,0.0002399,2]
[382181050,1756536638956,-180.0,0.00024,7]
[382181052,1756536638965,-500.0,0.00024,7]
[382181054,1756536638974,-232.73020027,0.00024,7]
[382181056,1756536638983,-160.0,0.00024,7]
[382181057,1756536638995,-217.34977173,0.00024,7]
[382181059,1756536639004,-160.0,0.00024,7]
[382181061,1756536639014,-300.0,0.00024105,20]
[382181063,1756536639024,-300.0,0.00024105,20]
[382181065,1756536639033,-300.0,0.00024105,20]
[382181067,1756536639042,-300.0,0.00024105,20]
[382181069,1756536639052,-300.0,0.00024105,20]
[382181071,1756536639061,-300.0,0.00024105,20]
[382181073,1756536639070,-300.0,0.00024105,20]
[382181075,1756536639080,-300.0,0.00024105,20]
[382181077,1756536639089,-300.0,0.00024105,20]
[382181079,1756536639099,-152.13807225,0.00024105,20]
[382181081,1756536639110,-151.0,0.00024105,20]
[382181083,1756536639120,-152.65524359,0.00024105,20]
[382181085,1756536639129,-151.0,0.00024105,20]
[382181087,1756536639139,-151.48684361,0.00024105,20]
[382181089,1756536639149,-241.85192776,0.00024105,20]
[382181091,1756536639158,-151.37198271,0.00024105,2]
[382181093,1756536639170,-151.77123579,0.00024105,20]
[382181095,1756536639179,-154.25006985,0.00024105,20]
[382181097,1756536639188,-151.0,0.00024105,20]
[382181099,1756536639198,-151.0,0.00024105,14]
[382181101,1756536639207,-154.06718767,0.00024105,20]
[382181103,1756536639217,-151.0,0.00024105,20]
[382181105,1756536639226,-152.22796554,0.00024105,20]
[382181107,1756536639235,-157.30439683,0.00024105,20]
[382181109,1756536639246,-500.0,0.00024274,7]
[382181111,1756536639255,-151.0,0.00024379,20]
[382181113,1756536639265,-151.0,0.00024379,20]
[382181114,1756536639275,-151.0,0.00024379,20]
[382181116,1756536639284,-179.74479563,0.00024379,20]
[382181118,1756536639294,-500.0,0.00024521,2]
[382181120,1756536639303,-500.0,0.00024521,2]
[382181122,1756536639312,-1018.55572137,0.00024521,2]
[382181124,1756536639322,-501.31195499,0.00024521,2]
[382181126,1756536639332,-520.39784858,0.00024521,2]
[382181128,1756536639341,-1000.0,0.00024521,2]
[382181130,1756536639351,-355.85596122,0.00024521,2]
[382181132,1756536639360,-407.15470342,0.00024521,2]
[382181134,1756536639370,-500.0,0.00024521,2]
[382181136,1756536639379,-356.751259,0.00024521,2]
[382181138,1756536639388,-1000.0,0.00024521,2]
[382181140,1756536639397,-1000.0,0.00024521,2]
[382181142,1756536639407,-549.61782895,0.00024521,2]
[382181144,1756536639416,-500.0,0.00024521,2]
[382181146,1756536639426,-1000.0,0.00024521,2]
[382181148,1756536639435,-537.30438002,0.00024521,2]
[382181149,1756536639445,-336.23610955,0.00024548,7]
[382181151,1756536639454,-151.0,0.00024653,20]
[382181153,1756536639464,-402.04830025,0.00024658,2]
[382181155,1756536639474,-425.65682239,0.00024664,2]
[382181158,1756536639484,-11361.55901651,0.00024666,2]
[382181159,1756536639494,-20503.3910862,0.000248,2]
[382181161,1756536639504,-327.42,0.00024862,2]
[382181163,1756536639514,-1863.9446442,0.00024863,2]
[382181165,1756536639524,-500.11135516,0.00024873,2]
[382181168,1756536639533,-500.0,0.00024873,2]
[382181169,1756536639543,-500.0,0.00024873,2]
[382181172,1756536639552,-501.2527475,0.00024873,2]